bitfinex/quotes_BTCUSD_20250314
["timestamp","ask_amount","ask_price","bid_price","bid_amount"]
[1741990720773,0.004,84629.0,84627.0,0.236329]
[1741990721225,0.004,84629.0,84628.0,0.144976]
[1741990721395,0.004,84629.0,84628.0,0.221276]
[1741990721599,0.01740388,84631.0,84629.0,0.236325]
[1741990722106,0.01807312,84646.0,84636.0,0.232305]
[1741990722258,0.67786422,84650.0,84636.0,0.232305]
[1741990722457,0.67786422,84650.0,84637.0,0.2363]
[1741990722647,0.02416711,84649.0,84638.0,0.3071907]
[1741990722847,0.02416711,84649.0,84639.0,0.236295]
[1741990723262,0.02458341,84649.0,84640.0,0.236292]
[1741990723915,0.02458341,84649.0,84638.0,0.3071907]
[1741990724092,0.02458341,84649.0,84638.0,0.236298]
[1741990724488,0.02458341,84649.0,84639.0,0.236295]
[1741990725092,0.0004163,84649.0,84647.0,0.236273]
[1741990725403,0.0014163,84649.0,84646.0,0.236277]
[1741990725611,0.0014163,84649.0,84645.0,0.236278]
[1741990725814,0.0004163,84649.0,84644.0,0.236282]
[1741990728003,0.75072,84679.0,84650.0,0.011813]
[1741990728212,0.02368846,84667.0,84662.0,0.236231]
[1741990728416,0.02368846,84667.0,84662.0,0.236233]
[1741990728609,0.02368846,84667.0,84665.0,0.236222]
[1741990729108,0.75072,84679.0,84669.0,0.236213]
[1741990729311,0.02204027,84666.0,84665.0,0.236222]
[1741990729912,0.02204027,84666.0,84665.0,0.393633]
[1741990730287,0.02204027,84666.0,84665.0,0.293633]
[1741990730612,0.02304027,84666.0,84665.0,0.281822]
[1741990731892,0.02204027,84666.0,84665.0,0.281822]
[1741990732095,0.02204027,84666.0,84665.0,0.358322]
[1741990732326,0.02204027,84666.0,84665.0,0.5564471]
[1741990733003,0.02204027,84666.0,84665.0,0.470133]
[1741990733593,0.02204027,84666.0,84665.0,0.371133]
[1741990733834,0.02204027,84666.0,84665.0,0.471133]
[1741990734039,0.02204027,84666.0,84665.0,0.371133]
[1741990734244,0.21135185,84700.0,84669.0,0.01181]
[1741990734572,0.21135185,84700.0,84672.0,0.01181]
[1741990734573,3.2699,84699.0,84672.0,0.01181]
[1741990734722,0.0001692,84683.0,84672.0,0.01181]
[1741990734926,0.0001692,84683.0,84673.0,0.13304]
[1741990735135,0.0001692,84683.0,84674.0,0.13304]
[1741990735725,0.0001692,84683.0,84674.0,0.13315591]
[1741990736531,0.0001692,84683.0,84677.0,0.336191]
[1741990736893,0.0001692,84683.0,84675.0,0.32601159]
[1741990737183,0.0001692,84683.0,84676.0,0.236191]
[1741990737734,0.0001692,84683.0,84674.0,0.00011591]
[1741990739175,0.0001692,84683.0,84675.0,0.236197]
[1741990740970,0.0001692,84683.0,84674.0,0.00011591]
[1741990743034,0.01454085,84707.0,84679.0,0.236186]
[1741990743308,0.02404081,84696.0,84683.0,0.236172]
[1741990743514,0.02404081,84696.0,84679.0,0.247995]
[1741990743515,0.3,84694.0,84680.0,0.23618]
[1741990743705,0.3,84692.0,84680.0,0.23618]
[1741990744005,0.3,84692.0,84677.0,0.236191]
[1741990744208,0.3,84692.0,84679.0,0.236184]
[1741990744911,0.02404081,84696.0,84678.0,0.236187]
[1741990745123,0.02404081,84696.0,84675.0,0.076]
[1741990745124,0.3,84694.0,84677.0,0.236191]
[1741990745275,0.3,84692.0,84678.0,0.236187]
[1741990745906,0.3,84692.0,84677.0,0.236191]
[1741990746082,0.3,84692.0,84678.0,0.236186]
[1741990746458,5.05,84691.0,84678.0,0.236186]
[1741990746661,0.3,84689.0,84674.0,0.00011591]
[1741990747067,0.1332,84704.0,84677.0,0.011809]
[1741990747213,0.02204298,84688.0,84682.0,0.011808]
[1741990747426,0.02204298,84688.0,84686.0,0.236164]
[1741990748858,0.02204298,84687.0,84686.0,0.236164]
[1741990749108,0.02204298,84687.0,84684.0,0.236172]
[1741990749109,0.02204298,84687.0,84674.0,0.00045411]
[1741990749434,4.6435,84686.0,84675.0,0.236195]
[1741990749633,4.66554298,84686.0,84677.0,0.23619]
[1741990749863,4.7803,84685.0,84674.0,0.00045411]
[1741990750540,0.3,84684.0,84674.0,0.00045411]
[1741990751172,0.3,84684.0,84675.0,0.236195]
[1741990751765,0.21135185,84690.0,84675.0,0.236195]
[1741990751766,0.02361471,84694.0,84675.0,0.236195]
[1741990751977,5.05,84693.0,84675.0,0.236195]
[1741990752171,5.16957503,84693.0,84675.0,0.236195]
[1741990752515,5.16957503,84693.0,84676.0,0.236192]
[1741990752516,5.05,84692.0,84676.0,0.236192]
[1741990752725,0.004,84684.0,84676.0,0.236192]
[1741990753126,0.02361471,84694.0,84676.0,0.236192]
[1741990753348,0.002,84684.0,84674.0,0.23665211]
[1741990753553,0.005,84693.0,84674.0,0.23665211]
[1741990753678,5.05,84692.0,84674.0,0.23665211]
[1741990753879,0.02339682,84679.0,84674.0,0.00045411]
[1741990754337,0.02339682,84679.0,84676.0,0.001]
[1741990755549,0.02339682,84679.0,84674.0,0.00045411]
[1741990755951,0.01454085,84703.0,84679.0,0.236185]
[1741990756148,0.01454085,84701.0,84679.0,0.236185]
[1741990756375,0.01454085,84699.0,84681.0,0.236179]
[1741990756555,0.01454085,84697.0,84679.0,0.236185]
[1741990756758,5.05,84696.0,84680.0,0.232181]
[1741990757079,0.004,84692.0,84682.0,0.236175]
[1741990757276,0.004,84692.0,84681.0,0.236177]
[1741990757422,0.02382696,84683.0,84680.0,0.236181]
[1741990757629,0.004,84692.0,84680.0,0.236181]
[1741990757845,3.5962,84691.0,84680.0,0.236181]
[1741990758206,0.01454085,84697.0,84680.0,0.236181]
[1741990758420,0.0235688,84683.0,84680.0,0.236181]
[1741990758956,0.0235688,84683.0,84678.0,0.236186]
[1741990760196,0.0285688,84683.0,84678.0,0.236186]
[1741990760391,0.0285688,84683.0,84680.0,0.23618]
[1741990760985,0.0285688,84683.0,84682.0,0.236177]
[1741990761158,0.005,84683.0,84682.0,0.470585]
[1741990761709,0.005,84683.0,84682.0,0.370585]
[1741990761914,0.003,84683.0,84682.0,0.370585]
[1741990762328,0.008,84683.0,84682.0,0.370585]
[1741990762810,0.003,84683.0,84682.0,0.370585]
[1741990763356,0.003,84683.0,84682.0,0.471585]
[1741990763702,0.02516928,84683.0,84682.0,0.471585]
[1741990764105,0.02516928,84683.0,84682.0,0.371585]
[1741990764301,0.02516928,84683.0,84682.0,0.471585]
[1741990764669,0.02516928,84683.0,84682.0,0.371585]
[1741990764872,0.02516928,84683.0,84682.0,0.471585]
[1741990765089,0.02516928,84683.0,84682.0,0.371585]
[1741990765899,0.02516928,84683.0,84682.0,0.471585]
[1741990766294,0.02516928,84683.0,84682.0,0.371585]
[1741990766507,0.01454085,84707.0,84691.0,0.236152]
[1741990766704,0.02374406,84694.0,84692.0,0.6991]
[1741990767716,0.02374406,84694.0,84692.0,0.935248]
[1741990768184,0.02574406,84694.0,84692.0,0.935248]
[1741990768519,0.02574406,84694.0,84692.0,0.6991]
[1741990769389,0.02874406,84694.0,84692.0,0.6991]
[1741990769585,0.005,84694.0,84693.0,0.465147]
[1741990769806,0.005,84694.0,84692.0,0.6991]
[1741990770414,4.659227,84693.0,84692.0,0.50592482]
[1741990770619,0.02,84691.0,84688.0,0.16567954]
[1741990770820,4.91513767,84690.0,84689.0,0.4146]
[1741990771031,4.91513767,84690.0,84651.0,0.0807]
[1741990771032,4.91513767,84690.0,84652.0,0.89154463]
[1741990771340,0.02415136,84654.0,84653.0,0.47694463]
[1741990771544,0.01454085,84669.0,84668.0,0.35343382]
[1741990771709,0.05044212,84669.0,84668.0,0.35343382]
[1741990771917,0.03802443,84669.0,84668.0,0.35343382]
[1741990772122,4.69725143,84669.0,84668.0,0.35343382]
[1741990772327,5.39725143,84669.0,84668.0,0.35343382]
[1741990772729,5.39737632,84669.0,84668.0,0.35243382]
[1741990773687,4.69737632,84669.0,84668.0,0.35243382]
[1741990774194,4.70237632,84669.0,84668.0,0.35243382]
[1741990774396,0.41332489,84669.0,84668.0,0.35243382]
[1741990774543,0.41680718,84669.0,84668.0,0.35243382]
[1741990774743,0.42566012,84669.0,84668.0,0.35243382]
[1741990774923,0.42066012,84669.0,84668.0,0.35243382]
[1741990775468,0.42566012,84669.0,84668.0,0.35243382]
[1741990775972,0.42066012,84669.0,84668.0,0.35243382]
[1741990776175,0.46272613,84669.0,84668.0,0.35243382]
[1741990776498,0.76672613,84669.0,84668.0,0.35243382]
[1741990777953,0.45787319,84669.0,84668.0,0.82937845]
[1741990778157,0.009,84669.0,84668.0,0.60594463]
[1741990779101,0.3,84687.0,84668.0,0.60594463]
[1741990779314,0.3,84685.0,84669.0,0.650813]
[1741990779526,0.3,84683.0,84669.0,0.645813]
[1741990779701,0.41957503,84683.0,84669.0,0.645813]
[1741990779901,0.3,84683.0,84669.0,0.645813]
[1741990780125,0.0237031,84677.0,84669.0,0.642813]
[1741990780384,0.0237031,84677.0,84669.0,0.4146]
[1741990780760,0.3,84675.0,84669.0,0.4146]
[1741990780965,0.3,84673.0,84669.0,0.4146]
[1741990781190,0.3,84671.0,84669.0,0.4146]
[1741990781964,0.3,84671.0,84669.0,0.4096]
[1741990782257,0.0237031,84677.0,84669.0,0.4096]
[1741990782499,0.005,84677.0,84673.0,0.01181]
[1741990782690,0.01454085,84689.0,84678.0,0.236186]
[1741990782836,0.3,84687.0,84678.0,0.236186]
[1741990783039,0.3,84685.0,84678.0,0.233186]
[1741990783245,0.3,84683.0,84679.0,0.236183]
[1741990783472,0.3,84683.0,84678.0,0.233186]
[1741990783799,0.3,84683.0,84678.0,0.231186]
[1741990784308,0.01454085,84689.0,84678.0,0.231186]
[1741990784477,0.3,84687.0,84678.0,0.231186]
[1741990784692,0.3,84685.0,84678.0,0.230186]
[1741990784880,0.3,84683.0,84678.0,0.230186]
[1741990785051,0.304,84683.0,84678.0,0.230186]
[1741990785689,0.02375297,84681.0,84678.0,0.230186]
[1741990785869,0.02375297,84681.0,84679.0,0.236183]
[1741990787008,0.34892071,84689.0,84687.0,0.235163]
[1741990787009,0.001,84689.0,84687.0,0.235163]
[1741990787173,0.001,84689.0,84688.0,0.47694463]
[1741990787894,0.0001692,84694.0,84688.0,0.47694463]
[1741990788174,0.02453507,84689.0,84688.0,0.47694463]
[1741990788806,2.0846055,84689.0,84688.0,0.47694463]
[1741990789007,4.67846535,84689.0,84688.0,0.09585751]
[1741990789138,0.31454085,84688.0,84669.0,0.46110858]
[1741990789337,0.31454085,84679.0,84669.0,0.46110858]
[1741990789541,0.3,84677.0,84669.0,0.46110858]
[1741990789738,4.306919,84678.0,84670.0,0.33472378]
[1741990789739,0.01454085,84674.0,84670.0,0.33472378]
[1741990790081,0.31454085,84672.0,84670.0,0.27456435]
[1741990790244,4.64543545,84671.0,84670.0,0.24256435]
[1741990791255,4.64543545,84671.0,84670.0,0.22842284]
[1741990791462,4.64543545,84671.0,84670.0,0.22042284]
[1741990791463,4.70079293,84671.0,84670.0,0.22042284]
[1741990791658,3.8098756,84671.0,84670.0,0.21642285]
[1741990791893,4.1098756,84671.0,84670.0,0.21642285]
[1741990792135,4.11888065,84671.0,84670.0,0.21642285]
[1741990792633,4.12388065,84671.0,84670.0,0.21642285]
[1741990793003,4.12788065,84671.0,84670.0,0.21642285]
[1741990793559,4.24745568,84671.0,84670.0,0.21642285]
[1741990793783,4.25245568,84671.0,84670.0,0.21642285]
[1741990794193,4.26699653,84671.0,84670.0,0.21642285]
[1741990794990,0.31454085,84670.0,84650.0,0.36946459]
[1741990795192,0.31454085,84670.0,84651.0,0.4146]
[1741990795193,0.3,84659.0,84651.0,0.4146]
[1741990795388,0.3,84657.0,84651.0,0.4146]
[1741990795653,0.3,84655.0,84651.0,0.4146]
[1741990795859,0.3,84653.0,84651.0,0.4146]
[1741990796236,4.606919,84652.0,84651.0,0.4146]
[1741990797045,4.606919,84652.0,84651.0,0.4036]
[1741990797411,4.6321042,84652.0,84651.0,0.4036]
[1741990797610,4.5655852,84652.0,84651.0,0.4036]
[1741990798519,4.5655852,84652.0,84651.0,0.403939]
[1741990798753,4.68516023,84652.0,84651.0,0.403939]
[1741990799111,4.5655852,84652.0,84651.0,0.403939]
[1741990801466,0.3291852,84652.0,84651.0,0.403939]
[1741990801690,4.3361042,84652.0,84651.0,0.403939]
[1741990803389,4.35064505,84652.0,84651.0,0.403939]
[1741990803600,4.35064505,84652.0,84651.0,0.35093386]
[1741990803601,4.65064505,84652.0,84651.0,0.35093386]
[1741990803782,4.77022008,84652.0,84651.0,0.35093386]
[1741990804960,5.47022008,84652.0,84651.0,0.29893386]
[1741990806011,5.3361042,84652.0,84651.0,0.29893386]
[1741990806222,2.4562852,84652.0,84651.0,0.29893386]
[1741990806635,1.7562852,84652.0,84651.0,0.29893386]
[1741990809370,1.77082605,84652.0,84651.0,0.28893386]
[1741990809572,2.59040108,84652.0,84651.0,0.28893386]
[1741990810198,2.59040108,84652.0,84651.0,0.19297203]
[1741990810400,2.59040108,84652.0,84651.0,0.10581203]
[1741990810800,2.59057068,84652.0,84651.0,0.10581203]
[1741990811199,2.58657068,84652.0,84651.0,0.10581203]
[1741990811618,2.59057068,84652.0,84651.0,0.05066203]
[1741990811827,2.58857068,84652.0,84651.0,0.05066203]
[1741990812028,2.59057068,84652.0,84651.0,0.05066203]
[1741990812503,2.59057068,84652.0,84636.0,0.4146]
[1741990812715,0.31454085,84645.0,84636.0,0.31370967]
[1741990812919,0.31454085,84643.0,84636.0,0.2781668]
[1741990813130,0.02417389,84637.0,84636.0,0.25919518]
[1741990813337,4.64563374,84637.0,84636.0,0.25919518]
[1741990813543,4.76520877,84637.0,84636.0,0.25919518]
[1741990813949,5.46520877,84637.0,84636.0,0.25919518]
[1741990814281,5.46520877,84637.0,84636.0,0.18979618]
[1741990814490,5.47020877,84637.0,84636.0,0.18979618]
[1741990814698,4.77020877,84637.0,84636.0,0.18979618]
[1741990815083,0.46328977,84637.0,84636.0,0.18979618]
[1741990815400,4.65063374,84637.0,84636.0,0.18979618]
[1741990815814,4.65563374,84637.0,84636.0,0.18979618]
[1741990817092,4.65563374,84637.0,84636.0,0.13479618]
[1741990817686,5.35563374,84637.0,84636.0,0.13479618]
[1741990818926,5.42198871,84637.0,84636.0,0.13479618]
[1741990819098,5.54156374,84637.0,84636.0,0.13479618]
[1741990820992,5.55267399,84637.0,84636.0,0.10703029]
[1741990821191,5.55267399,84637.0,84636.0,0.10085823]
[1741990821397,5.55267399,84637.0,84636.0,0.08825823]
[1741990821982,5.58823899,84637.0,84636.0,0.00811823]
[1741990822302,5.58823899,84637.0,84621.0,0.0761]
[1741990822303,0.31454085,84636.0,84621.0,0.0761]
[1741990822504,0.3,84630.0,84611.0,0.36933453]
[1741990822669,0.3,84620.0,84611.0,0.36533769]
[1741990822875,0.01454085,84617.0,84611.0,0.36533769]
[1741990823078,0.3,84615.0,84611.0,0.36533769]
[1741990823417,0.3,84613.0,84611.0,0.36533769]
[1741990823616,4.606919,84612.0,84611.0,0.36533769]
[1741990825034,4.606919,84612.0,84611.0,0.36033769]
[1741990825035,4.62145985,84612.0,84611.0,0.36033769]
[1741990825238,4.62245985,84612.0,84611.0,0.30238769]
[1741990826217,5.32245985,84612.0,84611.0,0.30238769]
[1741990826648,5.32545985,84612.0,84611.0,0.30238769]
[1741990826990,5.44503488,84612.0,84611.0,0.30238769]
[1741990827535,5.44503488,84612.0,84611.0,0.30180769]
[1741990827735,5.32545985,84612.0,84611.0,0.30180769]
[1741990828071,0.3,84611.0,84604.0,0.0761]
[1741990828276,1.0,84611.0,84604.0,0.0761]
[1741990828464,2.8077,84610.0,84604.0,0.0761]
[1741990829306,3.5077,84610.0,84604.0,0.0761]
[1741990829510,2.3548,84610.0,84609.0,0.00046313]
[1741990829732,2.47437503,84610.0,84609.0,0.00046313]
[1741990830161,2.3548,84610.0,84609.0,0.00046313]
[1741990830981,1.6548,84610.0,84609.0,0.00046313]
[1741990831188,1.6568,84610.0,84609.0,0.00046313]
[1741990832261,1.66694697,84610.0,84609.0,0.00046313]
[1741990832861,0.01214697,84610.0,84609.0,0.14038213]
[1741990833065,0.01214697,84610.0,84609.0,0.12856313]
[1741990833308,0.002,84610.0,84609.0,0.12856313]
[1741990833899,0.00886847,84613.0,84610.0,0.236378]
[1741990834099,0.3,84626.0,84609.0,0.43037082]
[1741990834283,0.13308,84627.0,84609.0,0.43037082]
[1741990834284,0.002,84610.0,84609.0,0.43037082]
[1741990834664,0.002,84610.0,84609.0,0.66675182]
[1741990835668,0.3,84624.0,84613.0,0.23637]
[1741990835988,0.02317771,84620.0,84613.0,0.23537]
[1741990836311,0.02317771,84620.0,84611.0,0.236373]
[1741990836573,0.0001697,84612.0,84611.0,0.236373]
[1741990837977,0.0001697,84612.0,84609.0,0.43037082]
[1741990838321,0.0001697,84612.0,84609.0,0.66674982]
[1741990838758,0.0001697,84612.0,84610.0,0.236376]
[1741990839080,0.0021697,84612.0,84610.0,0.236376]
[1741990839383,0.0001697,84612.0,84610.0,0.236376]
[1741990839678,0.0021697,84612.0,84611.0,0.30180769]
[1741990840228,0.0001697,84612.0,84611.0,0.30180769]
[1741990840424,0.0021697,84612.0,84611.0,0.30180769]
[1741990842076,0.0001697,84612.0,84611.0,0.30180769]
[1741990842519,0.0021697,84612.0,84611.0,0.30180769]
[1741990848838,0.0021697,84612.0,84597.0,0.13486053]
[1741990849132,0.02284266,84611.0,84579.0,0.1]
[1741990849419,0.31454085,84610.0,84609.0,0.0003394]
[1741990849625,4.34989885,84610.0,84609.0,0.0003394]
[1741990849822,4.38775589,84610.0,84609.0,0.0003394]
[1741990850465,4.45414409,84610.0,84609.0,0.0003394]
[1741990850577,4.60550674,84610.0,84609.0,0.0003394]
[1741990850778,5.31050674,84610.0,84609.0,0.0003394]
[1741990850978,5.32161774,84610.0,84609.0,0.00012684]
[1741990851365,5.35001434,84610.0,84609.0,0.00012684]
[1741990851539,5.49780434,84610.0,84609.0,0.00012684]
[1741990852597,5.42671434,84610.0,84609.0,0.00012684]
[1741990854458,5.42171434,84610.0,84609.0,0.00012684]
[1741990854764,5.42671434,84610.0,84609.0,0.00012684]
[1741990855217,5.42171434,84610.0,84609.0,0.00012684]
[1741990855640,5.42671434,84610.0,84609.0,0.00012684]
[1741990857677,1.43995634,84610.0,84609.0,0.00012684]
[1741990857833,5.42671434,84610.0,84609.0,0.00012684]
[1741990860474,0.01454085,84609.0,84578.0,0.0784]
[1741990860687,0.01454085,84603.0,84578.0,0.0784]
[1741990860889,0.31454085,84601.0,84578.0,0.0784]
[1741990861066,0.01454085,84598.0,84578.0,0.0784]
[1741990861303,0.31454085,84596.0,84578.0,0.0784]
[1741990861507,0.31454085,84594.0,84578.0,0.0784]
[1741990861704,0.31454085,84592.0,84578.0,0.0784]
[1741990861921,0.31454085,84590.0,84578.0,0.0784]
[1741990862145,0.3,84588.0,84578.0,0.0784]
[1741990862381,0.3,84586.0,84578.0,0.0784]
[1741990862584,4.286758,84585.0,84578.0,0.0784]
[1741990862840,4.40633303,84585.0,84578.0,0.0784]
[1741990863101,4.41410991,84585.0,84578.0,0.0784]
[1741990863321,4.43759519,84585.0,84578.0,0.0784]
[1741990863558,5.01802016,84585.0,84578.0,0.0784]
[1741990864370,4.06746216,84585.0,84578.0,0.0784]
[1741990864588,2.71606216,84585.0,84578.0,0.0784]
[1741990864821,2.37056216,84585.0,84578.0,0.0784]
[1741990865032,2.37556216,84585.0,84578.0,0.0784]
[1741990865249,2.34656216,84585.0,84578.0,0.0784]
[1741990865487,2.29616216,84585.0,84578.0,0.0784]
[1741990865718,2.29283719,84585.0,84578.0,0.0784]
[1741990866091,2.17326216,84585.0,84578.0,0.0784]
[1741990866301,1.27436216,84585.0,84578.0,0.0784]
[1741990868516,1.24416216,84585.0,84584.0,0.1276388]
[1741990868738,0.31677688,84585.0,84584.0,0.1276388]
[1741990869604,0.31177688,84585.0,84584.0,0.1276388]
[1741990869914,0.31577688,84585.0,84584.0,0.1276388]
[1741990870145,0.31177688,84585.0,84584.0,0.1276388]
[1741990870347,0.31377688,84585.0,84584.0,0.1276388]
[1741990871945,0.34515457,84585.0,84584.0,0.1276388]
[1741990872166,2.02767688,84585.0,84584.0,0.1276388]
[1741990872373,4.30053488,84585.0,84584.0,0.1276388]
[1741990872982,0.3,84584.0,84583.0,0.0003388]
[1741990873359,0.30778905,84584.0,84583.0,0.0003388]
[1741990874001,0.30778905,84584.0,84566.0,0.0003392]
[1741990874002,4.4417679,84584.0,84566.0,0.0003392]
[1741990874129,0.3,84582.0,84566.0,0.00046384]
[1741990874328,0.01454085,84579.0,84566.0,0.00046384]
[1741990874529,0.31454085,84577.0,84566.0,0.00046384]
[1741990874767,0.3,84575.0,84566.0,0.00046384]
[1741990874970,0.3,84573.0,84566.0,0.00046384]
[1741990875183,0.3,84571.0,84566.0,0.00046384]
[1741990875382,0.3,84569.0,84566.0,0.00046384]
[1741990875597,2.16463787,84568.0,84566.0,0.00046384]
[1741990875806,2.1976,84567.0,84566.0,0.00046384]
[1741990876007,2.1976,84567.0,84566.0,0.08366384]
[1741990876433,2.20534297,84567.0,84566.0,0.08366384]
[1741990877312,1.96244297,84567.0,84566.0,0.08366384]
[1741990877519,1.96244297,84567.0,84561.0,0.4146]
[1741990877520,2.39655885,84567.0,84561.0,0.4146]
[1741990877718,0.01454085,84565.0,84561.0,0.3799176]
[1741990877953,0.3,84563.0,84561.0,0.3799176]
[1741990878153,4.286758,84562.0,84561.0,0.3799176]
[1741990878304,4.29440269,84562.0,84561.0,0.3799176]
[1741990879878,4.29840269,84562.0,84561.0,0.3799176]
[1741990880426,4.30040269,84562.0,84561.0,0.3799176]
[1741990880628,0.31364469,84562.0,84561.0,0.3799176]
[1741990884281,0.01364469,84562.0,84561.0,0.4917426]
[1741990884886,0.006,84562.0,84561.0,0.4917426]
[1741990885459,0.002,84562.0,84561.0,0.4917426]
[1741990886037,0.002,84562.0,84561.0,0.4920822]
[1741990886447,0.02914765,84567.0,84566.0,0.011825]
[1741990887040,0.02914765,84567.0,84566.0,0.6282436]
[1741990887041,0.0001243,84567.0,84566.0,0.6282436]
[1741990887244,0.0001243,84567.0,84566.0,0.8622436]
[1741990891907,0.0001243,84567.0,84566.0,0.86324429]
[1741990898988,0.0002941,84567.0,84566.0,0.86324429]
[1741990906474,0.0002941,84567.0,84566.0,0.38091829]
[1741990908174,0.0012941,84567.0,84566.0,0.38091829]
[1741990908961,0.00924064,84567.0,84566.0,0.38091829]
[1741990912872,0.0012941,84567.0,84566.0,0.44064329]
[1741990916424,0.0012941,84567.0,84566.0,0.42881829]
[1741990920629,0.0012941,84567.0,84566.0,0.04890069]
[1741990922888,0.0012941,84567.0,84566.0,0.06072569]
[1741990923097,0.23851041,84589.0,84574.0,0.236479]
[1741990923353,0.00836602,84588.0,84574.0,0.236479]
[1741990923681,0.0268031,84588.0,84574.0,0.236479]
[1741990923802,0.02349557,84579.0,84575.0,0.236474]
[1741990924022,1.6259,84578.0,84575.0,0.236474]
[1741990924216,1.4994,84578.0,84574.0,0.21622646]
[1741990924531,0.00832316,84577.0,84574.0,0.21622646]
[1741990924752,0.00832316,84577.0,84576.0,0.093523]
[1741990925201,0.01843708,84588.0,84584.0,0.233449]
[1741990925390,0.11115041,84589.0,84584.0,0.233449]
[1741990925585,0.00775287,84587.0,84584.0,0.233449]
[1741990925762,0.00776007,84588.0,84584.0,0.232449]
[1741990925977,0.00775227,84586.0,84584.0,0.232449]
[1741990926173,0.01860191,84588.0,84582.0,0.236455]
[1741990926569,0.00775617,84587.0,84582.0,0.236455]
[1741990926946,0.00775617,84587.0,84586.0,0.011822]
[1741990927095,0.01860191,84588.0,84587.0,0.236442]
[1741990927425,0.01860191,84588.0,84586.0,0.236443]
[1741990927638,0.01860191,84588.0,84586.0,0.234443]
[1741990928525,0.02060191,84588.0,84586.0,0.234443]
[1741990928912,0.01860191,84588.0,84587.0,0.011822]
[1741990929379,0.02060191,84588.0,84587.0,0.011822]
[1741990929551,0.02060191,84588.0,84587.0,0.111822]
[1741990929751,0.02060191,84588.0,84587.0,0.011822]
[1741990929955,0.02060191,84588.0,84587.0,0.111822]
[1741990930699,0.01860191,84588.0,84587.0,0.111822]
[1741990931037,0.02060191,84588.0,84587.0,0.111822]
[1741990931419,0.02060191,84588.0,84587.0,0.011822]
[1741990931618,0.002,84588.0,84587.0,0.111822]
[1741990931829,0.002,84588.0,84587.0,0.22613073]
[1741990932024,0.002,84588.0,84587.0,0.27113073]
[1741990932291,0.002,84588.0,84587.0,0.26994863]
[1741990932915,0.0001697,84612.0,84609.0,0.187219]
[1741990933042,0.0002943,84610.0,84609.0,0.411781]
[1741990933250,0.01923571,84610.0,84609.0,0.411781]
[1741990934323,0.01923571,84610.0,84609.0,0.410781]
[1741990934822,0.01923571,84610.0,84609.0,0.409781]
[1741990935023,0.01923571,84610.0,84609.0,0.410781]
[1741990935451,0.02023571,84610.0,84609.0,0.410781]
[1741990937603,0.02023571,84610.0,84609.0,0.335381]
[1741990940568,0.02023571,84610.0,84609.0,0.335381]
[1741990941225,0.02023571,84610.0,84609.0,0.237381]
[1741990941427,0.02023571,84610.0,84609.0,0.335381]
[1741990943604,0.02023571,84610.0,84609.0,0.001]
[1741990944264,0.0265496,84610.0,84609.0,0.001]
[1741990945316,0.0265496,84610.0,84609.0,0.001339]
[1741990946214,0.0265496,84610.0,84609.0,0.00274038]
[1741990946774,0.00760819,84610.0,84609.0,0.47464038]
[1741990946930,0.0012943,84610.0,84609.0,0.54822571]
[1741990947742,0.0002943,84610.0,84609.0,0.47364038]
[1741990948195,0.0012943,84610.0,84609.0,0.47764038]
[1741990948674,0.0022943,84610.0,84609.0,0.47864038]
[1741990948913,0.0012943,84610.0,84609.0,0.47464038]
[1741990950171,0.0002943,84610.0,84609.0,0.47364038]
[1741990950419,0.0002943,84610.0,84609.0,0.57064612]
[1741990950623,0.0012943,84610.0,84609.0,0.57364612]
[1741990950826,0.0012943,84610.0,84609.0,0.57064612]
[1741990950985,0.0022943,84610.0,84609.0,0.57764612]
[1741990951383,0.0022943,84610.0,84609.0,0.57364612]
[1741990951790,0.0032943,84610.0,84609.0,0.57764612]
[1741990952191,0.0022943,84610.0,84609.0,0.57364612]
[1741990952580,0.0032943,84610.0,84609.0,0.57764612]
[1741990953650,0.0032943,84610.0,84609.0,0.70992612]
[1741990953874,0.0012943,84610.0,84609.0,0.70692612]
[1741990954252,0.0022943,84610.0,84609.0,0.70892612]
[1741990958932,0.0022943,84610.0,84609.0,0.70888612]
[1741990959253,0.0022943,84610.0,84609.0,0.67453312]
[1741990960017,0.0012943,84610.0,84609.0,0.67053312]
[1741990960489,0.0022943,84610.0,84609.0,0.57653312]
[1741990960717,0.0022943,84610.0,84609.0,0.67453312]
[1741990961048,0.0002943,84610.0,84609.0,0.57053312]
[1741990961217,0.0012943,84610.0,84609.0,0.67453312]
[1741990961726,0.0002943,84610.0,84609.0,0.67253312]
[1741990961958,0.0012943,84610.0,84609.0,0.67453312]
[1741990962339,0.0012943,84610.0,84609.0,0.57752738]
[1741990963449,0.0012943,84610.0,84609.0,0.53474]
[1741990968548,0.0012943,84610.0,84609.0,0.535079]
[1741990982996,0.0012943,84610.0,84609.0,0.437079]
[1741990983203,0.0001697,84612.0,84611.0,0.6614987]
[1741990983405,0.0001697,84612.0,84611.0,0.7594987]
[1741990984789,0.0001697,84612.0,84611.0,0.6614987]
[1741990985146,0.0001697,84612.0,84611.0,0.7594987]
[1741990985351,0.0001697,84612.0,84611.0,0.7634987]
[1741990985528,0.0011697,84612.0,84611.0,0.6674987]
[1741990985788,0.0011697,84612.0,84611.0,0.7654987]
[1741990986143,0.0011697,84612.0,84611.0,0.6674987]
[1741990986348,0.0011697,84612.0,84611.0,0.7654987]
[1741990987239,0.0011697,84612.0,84611.0,0.6674987]
[1741990987447,0.0011697,84612.0,84611.0,0.7654987]
[1741990992241,0.0011697,84612.0,84611.0,0.8977387]
[1741990997709,0.01970001,84612.0,84611.0,0.8977387]
[1741991000822,0.01970001,84612.0,84611.0,0.8909207]
[1741991001006,0.01970001,84612.0,84611.0,0.9027387]
[1741991001615,0.01470001,84612.0,84611.0,0.9027387]
[1741991001815,0.01470001,84612.0,84611.0,1.02231373]
[1741991002949,0.01486951,84612.0,84611.0,1.02231373]
[1741991005101,0.0001695,84612.0,84611.0,1.02231373]
[1741991006730,0.0001695,84612.0,84611.0,0.9027387]
[1741991007872,0.0186996,84612.0,84611.0,0.9027387]
[1741991012521,0.0186996,84612.0,84611.0,0.7536807]
[1741991012719,0.0186996,84612.0,84611.0,0.4193057]
[1741991012992,0.0186996,84612.0,84611.0,0.5173057]
[1741991013203,0.0186996,84612.0,84611.0,0.4193057]
[1741991013642,0.0485,84619.0,84611.0,0.4193057]
[1741991013845,0.01853256,84612.0,84611.0,0.4193057]
[1741991014178,0.0001695,84612.0,84611.0,0.4193057]
[1741991014381,0.0001695,84612.0,84611.0,0.4153057]